fUST/lending_fUST_20250806
["ID","MTS","AMOUNT","RATE_DAILY","PERIOD"]
[377613879,1754459237361,-151.94869,0.000274,7]
[377613880,1754459237380,-151.0,0.000274,7]
[377613881,1754459237399,-151.0,0.000274,7]
[377613882,1754459237420,-151.0,0.000274,7]
[377613883,1754459237440,-151.0,0.000274,7]
[377613884,1754459237460,-151.0,0.000274,7]
[377613885,1754459237487,-151.0,0.000274,7]
[377613886,1754459237510,-151.0,0.000274,7]
[377613887,1754459237530,-151.0,0.000274,7]
[377613888,1754459237550,-3168.59044294,0.000274,2]
[377613889,1754459237570,-151.0,0.000274,7]
[377613890,1754459237589,-151.0,0.000274,7]
[377613891,1754459237609,-32699.03871118,0.000274,2]
[377613892,1754459406072,200.0,0.00030137,120]
[377613936,1754459432175,-1000.0,0.000268,2]
[377613939,1754459432185,-1000.0,0.000268,4]
[377613941,1754459432194,-1000.0,0.000268,5]
[377613942,1754459432204,-1031.82,0.000268,7]
[377613943,1754459432213,-153.0,0.00027041,2]
[377613944,1754459432223,-300.0,0.00027199,2]
[377613946,1754459432232,-842.45170444,0.000272,7]
[377613947,1754459432241,-160.0,0.000272,7]
[377613948,1754459432251,-16518.48617926,0.000272,7]
[377613949,1754459432260,-500.0,0.00027397,2]
[377613950,1754459432270,-200.82486702,0.00027399,30]
[377613951,1754459432280,-199.26705394,0.00027399,7]
[377613952,1754459432289,-7454.28659119,0.000274,2]
[377613953,1754459432299,-465.621858,0.000274,7]
[377613954,1754459432308,-465.621858,0.000274,7]
[377613955,1754459432318,-1000.0,0.000274,2]
[377613956,1754459432331,-1000.0,0.000274,2]
[377613957,1754459432340,-451.24660781,0.000274,2]
[377613958,1754459432350,-153.0,0.000274,30]
[377613959,1754459432360,-1584.29522147,0.000274,2]
[377613960,1754459432369,-644.0,0.000274,2]
[377613961,1754459432379,-527.97423228,0.00027425,2]
[377613962,1754459432391,-151.0,0.00027425,7]
[377613963,1754459432400,-151.0,0.00027448,7]
[377613964,1754459432410,-160.0,0.00027448,7]
[377613965,1754459432420,-156.0,0.00027452,7]
[377613966,1754459432430,-151.0,0.00027473,7]
[377613967,1754459432440,-151.0,0.00027473,7]
[377613968,1754459432451,-151.0,0.00027473,7]
[377613969,1754459432462,-151.0,0.00027473,7]
[377613970,1754459432472,-3000.0,0.00027482,2]
[377613971,1754459432483,-151.0,0.00027482,7]
[377613972,1754459432493,-151.0,0.00027482,7]
[377613973,1754459432503,-151.0,0.00027482,7]
[377613974,1754459432512,-151.0,0.00027482,7]
[377613975,1754459432521,-151.0,0.00027482,7]
[377613976,1754459432532,-151.0,0.00027482,7]
[377613977,1754459432544,-151.0,0.00027482,7]
[377613978,1754459432553,-151.0,0.00027482,7]
[377613979,1754459432563,-151.0,0.00027482,7]
[377613980,1754459432574,-151.0,0.00027482,7]
[377613981,1754459432585,-151.0,0.00027482,7]
[377613982,1754459432594,-465.621858,0.00027482,7]
[377613983,1754459432604,-465.621858,0.00027482,7]
[377613984,1754459432614,-151.0,0.00027484,2]
[377613985,1754459432623,-250.0,0.00027484,2]
[377613986,1754459432633,-250.0,0.00027484,2]
[377613987,1754459432642,-250.0,0.00027484,2]
[377613988,1754459432652,-250.0,0.00027484,2]
[377613989,1754459432661,-250.0,0.00027484,2]
[377613990,1754459432671,-250.0,0.00027484,2]
[377613991,1754459432680,-250.0,0.00027484,2]
[377613992,1754459432690,-250.0,0.00027484,2]
[377613993,1754459432699,-250.0,0.00027484,2]
[377613994,1754459432708,-250.0,0.00027484,2]
[377613995,1754459432718,-250.0,0.00027484,2]
[377613996,1754459432727,-30.1274615,0.00027484,7]
[377614076,1754459438465,-500.0,0.00027484,2]
[377614078,1754459438475,-500.0,0.00027484,2]
[377614080,1754459438485,-5329.64015372,0.00027484,2]
[377614082,1754459438494,-500.0,0.00027484,2]
[377614083,1754459438503,-500.0,0.00027484,2]
[377614085,1754459438514,-500.0,0.00027484,2]
[377614088,1754459438526,-500.0,0.00027484,2]
[377614090,1754459438537,-500.0,0.00027484,2]
[377614092,1754459438548,-376.06662564,0.00027484,2]
[377614094,1754459438557,-649.4643065,0.00027484,7]
[377614095,1754459438566,-679.591768,0.00027484,7]
[377614097,1754459438576,-792.14761073,0.00027484,2]
[377614099,1754459438587,-4822.56843782,0.0002749,2]
[377614101,1754459438596,-293.9,0.0002749,3]
[377614103,1754459438607,-881.7,0.0002749,3]
[377614105,1754459438617,-151.0,0.000275,7]
[377614107,1754459438627,-45128.97885932,0.000275,2]
[377614109,1754459438637,-153.0,0.000275,30]
[377614111,1754459438646,-160.0,0.00027517,2]
[377614113,1754459438655,-160.0,0.0002752,2]
[377614115,1754459438665,-160.0,0.0002752,2]
[377614117,1754459438674,-160.0,0.0002752,2]
[377614119,1754459438683,-12657.93264304,0.0002752,2]
[377614120,1754459438692,-160.0,0.0002752,2]
[377614122,1754459438701,-160.0,0.0002752,2]
[377614124,1754459438710,-160.0,0.0002752,2]
[377614126,1754459438721,-215.26769691,0.0002752,2]
[377614128,1754459438731,-527.97423228,0.00027562,2]
[377614130,1754459438740,-151.0,0.00027562,7]
[377614132,1754459438749,-151.0,0.00027562,7]
[377614134,1754459438759,-151.0,0.00027562,7]
[377614149,1754459438901,-151.0,0.00027562,7]
[377614152,1754459438915,-151.0,0.00027562,7]
[377614154,1754459438924,-151.0,0.00027562,7]
[377614155,1754459438933,-465.621858,0.00027562,7]
[377614157,1754459438942,-465.621858,0.00027562,7]
[377614159,1754459438951,-151.0,0.00027585,7]
[377614161,1754459438960,-151.0,0.00027585,7]
[377614163,1754459438972,-151.0,0.00027585,7]
[377614165,1754459438981,-151.0,0.00027585,7]
[377614167,1754459438990,-151.0,0.00027585,7]
[377614169,1754459438999,-151.0,0.00027585,7]
[377614171,1754459439009,-465.621858,0.00027585,7]
[377614173,1754459439019,-465.621858,0.00027585,7]
[377614175,1754459439028,-151.0,0.00027587,7]
[377614177,1754459439038,-151.0,0.00027587,7]
[377614179,1754459439048,-151.0,0.00027587,7]
[377614181,1754459439057,-151.0,0.00027587,7]
[377614183,1754459439066,-224.236812,0.00027587,7]
[377614185,1754459439076,-224.236812,0.00027587,7]
[377614187,1754459439092,-151.0,0.00027587,7]
[377614189,1754459439101,-181.564175,0.00027587,7]
[377614191,1754459439112,-151.0,0.00027597,7]
[377614193,1754459439122,-154.91968,0.00027597,7]
[377614195,1754459439132,-151.0,0.00027597,7]
[377614197,1754459439141,-151.0,0.00027597,7]
[377614199,1754459439150,-151.0,0.00027597,7]
[377614201,1754459439160,-276.832987,0.00027597,7]
[377614203,1754459439170,-276.832987,0.00027597,7]
[377614205,1754459439179,-158.177051,0.00027597,7]
[377614207,1754459439189,-151.0,0.00027597,7]
[377614209,1754459439198,-151.0,0.00027597,7]
[377614211,1754459439207,-183.736099,0.00027597,7]
[377614213,1754459439217,-465.621858,0.00027597,7]
[377614215,1754459439226,-465.621858,0.00027597,7]
[377614217,1754459439236,-248.980751,0.00027597,7]
[377614219,1754459439246,-248.980751,0.00027597,7]
[377614221,1754459439255,-4822.56843782,0.00027603,2]
[377614223,1754459439265,-151.0,0.00027603,7]
[377614225,1754459439275,-151.0,0.00027603,7]
[377614227,1754459439284,-151.0,0.00027603,7]
[377614229,1754459439294,-151.0,0.00027603,7]
[377614231,1754459439304,-151.0,0.00027603,7]
[377614233,1754459439314,-151.0,0.00027603,7]
[377614235,1754459439324,-151.0,0.00027603,7]
[377614237,1754459439335,-151.0,0.00027603,7]
[377614239,1754459439345,-276.832987,0.00027603,7]
[377614241,1754459439354,-276.832987,0.00027603,7]
[377614243,1754459439364,-151.0,0.00027603,7]
[377614245,1754459439374,-151.0,0.00027603,7]
[377614247,1754459439384,-151.0,0.00027603,7]
[377614249,1754459439395,-151.0,0.00027603,7]
[377614251,1754459439405,-151.0,0.00027603,7]
[377614253,1754459439415,-151.0,0.00027603,7]
[377614255,1754459439427,-151.0,0.00027603,7]
[377614257,1754459439437,-151.0,0.00027603,7]
[377614259,1754459439447,-465.621858,0.00027603,7]
[377614261,1754459439457,-465.621858,0.00027603,7]
[377614263,1754459439466,-248.980751,0.00027603,7]
[377614265,1754459439475,-248.980751,0.00027603,7]
[377614267,1754459439485,-152.381599,0.00027613,7]
[377614269,1754459439495,-151.0,0.00027613,7]
[377614271,1754459439504,-151.0,0.00027613,7]
[377614273,1754459439514,-216.008222,0.00027613,7]
[377614275,1754459439523,-151.0,0.00027613,7]
[377614277,1754459439532,-151.0,0.00027613,7]
[377614278,1754459439546,-151.0,0.00027613,7]
[377614280,1754459439555,-159.64813,0.00027613,7]
[377614282,1754459439565,-679.591768,0.00027613,7]
[377614284,1754459439575,-679.591768,0.00027613,7]
[377614286,1754459439587,-151.0,0.00027613,7]
[377614288,1754459439597,-151.0,0.00027613,7]
[377614290,1754459439607,-151.0,0.00027613,7]
[377614292,1754459439619,-151.0,0.00027613,7]
[377614296,1754459439629,-151.0,0.00027613,7]
[377614299,1754459439639,-151.0,0.00027613,7]
[377614302,1754459439649,-276.832987,0.00027613,7]
[377614304,1754459439660,-276.832987,0.00027613,7]
[377614306,1754459439670,-151.0,0.00027613,7]
[377614308,1754459439680,-151.0,0.00027613,7]
[377614310,1754459439690,-151.0,0.00027613,7]
[377614312,1754459439699,-151.0,0.00027613,7]
[377614314,1754459439709,-151.0,0.00027613,7]
[377614316,1754459439719,-151.0,0.00027613,7]
[377614318,1754459439728,-167.250117,0.00027613,7]
[377614320,1754459439738,-169.067423,0.00027613,7]
[377614322,1754459439747,-151.0,0.00027613,7]
[377614324,1754459439757,-151.0,0.00027613,7]
[377614326,1754459439767,-151.0,0.00027613,7]
[377614328,1754459439776,-151.0,0.00027613,7]
[377614330,1754459439787,-151.0,0.00027613,7]
[377614332,1754459439797,-465.621858,0.00027613,7]
[377614334,1754459439807,-465.621868,0.00027613,7]
[377614336,1754459439816,-224.236812,0.00027613,7]
[377614338,1754459439826,-224.236812,0.00027613,7]
[377614340,1754459439835,-151.0,0.00027613,7]
[377614342,1754459439845,-181.564175,0.00027613,7]
[377614344,1754459439855,-201.357027,0.00027613,7]
[377614346,1754459439865,-201.357027,0.00027613,7]
[377614348,1754459439875,-345.438898,0.00027613,7]
[377614350,1754459439885,-345.438898,0.00027613,7]
[377614352,1754459439895,-185.455294,0.00027613,7]
[377614354,1754459439905,-185.455294,0.00027613,7]
[377614356,1754459439914,-151.0,0.00027613,7]
[377614358,1754459439923,-151.0,0.00027613,7]
[377614360,1754459439933,-151.0,0.00027613,7]
[377614362,1754459439942,-204.53151,0.00027613,7]
[377614364,1754459439952,-204.53151,0.00027613,7]
[377614366,1754459439961,-912.746167,0.00027613,7]
[377614368,1754459439972,-912.746167,0.00027613,7]
[377614370,1754459439982,-151.0,0.00027613,7]
[377614372,1754459439992,-151.0,0.00027613,7]
[377614374,1754459440002,-248.980751,0.00027613,7]
[377614376,1754459440012,-248.980751,0.00027613,7]
[377614378,1754459440021,-160.0,0.00027613,7]
[377614380,1754459440031,-500.0,0.00027671,2]
[377614382,1754459440041,-151.0,0.00027672,7]
[377614384,1754459440051,-151.0,0.00027672,7]
[377614386,1754459440061,-5000.0,0.00027682,2]
[377614388,1754459440070,-151.0,0.00027682,7]
[377614390,1754459440080,-151.0,0.00027682,7]
[377614392,1754459440091,-151.0,0.00027682,7]
[377614393,1754459440102,-151.0,0.00027682,7]
[377614395,1754459440112,-224.236812,0.00027682,7]
[377614397,1754459440123,-224.236812,0.00027682,7]
[377614399,1754459440134,-151.0,0.00027682,7]
[377614401,1754459440145,-181.564175,0.00027682,7]
[377614403,1754459440155,-151.698702,0.00027692,7]
[377614405,1754459440166,-527.97423228,0.00027699,2]
[377614407,1754459440176,-2964.0,0.00027721,2]
[377614408,1754459440186,-151.0,0.00027721,7]
[377614409,1754459440195,-256.862093,0.00027721,7]
[377614410,1754459440205,-151.0,0.00027721,7]
[377614411,1754459440214,-679.591768,0.00027721,7]
[377614412,1754459440223,-679.591768,0.00027721,7]
[377614413,1754459440233,-151.0,0.00027721,7]
[377614414,1754459440243,-151.0,0.00027721,7]
[377614415,1754459440252,-151.0,0.00027721,7]
[377614416,1754459440262,-151.0,0.00027721,7]
[377614417,1754459440271,-151.0,0.00027721,7]
[377614418,1754459440281,-276.832987,0.00027721,7]
[377614419,1754459440291,-276.832987,0.00027721,7]
[377614420,1754459440300,-151.0,0.00027721,7]
[377614421,1754459440311,-151.0,0.00027721,7]
[377614422,1754459440321,-151.0,0.00027721,7]
[377614423,1754459440330,-151.0,0.00027721,7]
[377614424,1754459440342,-151.0,0.00027721,7]
[377614425,1754459440351,-213.222436,0.00027721,7]
[377614426,1754459440361,-201.357027,0.00027721,7]
[377614427,1754459440370,-201.357027,0.00027721,7]
[377614428,1754459440379,-185.455294,0.00027721,7]
[377614429,1754459440389,-185.455294,0.00027721,7]
[377614430,1754459440398,-912.746167,0.00027721,7]
[377614431,1754459440407,-912.746167,0.00027721,7]
[377614432,1754459440416,-248.980751,0.00027721,7]
[377614433,1754459440425,-248.980751,0.00027721,7]
[377614434,1754459440434,-151.0,0.00027721,7]
[377614435,1754459440443,-232.539859,0.00027721,7]
[377614436,1754459440453,-514.75225,0.00027721,7]
[377614437,1754459440462,-514.75225,0.00027721,7]
[377614438,1754459440472,-527.97423228,0.00027808,2]
[377614439,1754459440481,-151.0,0.00027836,7]
[377614440,1754459440492,-151.0,0.00027836,7]
[377614441,1754459440501,-151.0,0.00027836,7]
[377614442,1754459440511,-6000.0,0.00027846,2]
[377614444,1754459440521,-151.0,0.00027846,7]
[377614445,1754459440531,-151.0,0.00027846,7]
[377614446,1754459440544,-151.0,0.00027846,7]
[377614448,1754459440553,-151.0,0.00027846,7]
[377614450,1754459440563,-291.664798,0.00027846,7]
[377614452,1754459440573,-162.560489,0.00027846,7]
[377614454,1754459440585,-276.832987,0.00027846,7]
[377614456,1754459440595,-276.832987,0.00027846,7]
[377614458,1754459440604,-151.0,0.00027846,7]
[377614460,1754459440615,-151.0,0.00027846,7]
[377614462,1754459440624,-151.0,0.00027846,7]
[377614464,1754459440634,-151.0,0.00027846,7]
[377614466,1754459440643,-151.0,0.00027846,7]
[377614468,1754459440653,-151.0,0.00027846,7]
[377614470,1754459440662,-224.236812,0.00027846,7]
[377614472,1754459440672,-224.236812,0.00027846,7]
[377614474,1754459440682,-284.792381,0.00027846,7]
[377614476,1754459440692,-181.564175,0.00027846,7]
[377614478,1754459440702,-201.357027,0.00027846,7]
[377614480,1754459440711,-201.357027,0.00027846,7]
[377614482,1754459440721,-345.438898,0.00027846,7]
[377614484,1754459440731,-345.438898,0.00027846,7]
[377614486,1754459440741,-185.455294,0.00027846,7]
[377614488,1754459440752,-185.455294,0.00027846,7]
[377614490,1754459440762,-912.746167,0.00027846,7]
[377614492,1754459440772,-912.746167,0.00027846,7]
[377614494,1754459440782,-248.980751,0.00027846,7]
[377614496,1754459440792,-248.980751,0.00027846,7]
[377614498,1754459440802,-153.0,0.00027863,30]
[377614500,1754459440812,-153.0,0.00027863,30]
[377614502,1754459440822,-153.0,0.00027863,30]
[377614504,1754459440831,-153.0,0.00027863,30]
[377614506,1754459440842,-153.0,0.00027863,30]
[377614508,1754459440851,-153.0,0.00027863,30]
[377614510,1754459440861,-153.0,0.00027863,30]
[377614512,1754459440871,-153.0,0.00027863,30]
[377614514,1754459440880,-153.0,0.00027863,30]
[377614516,1754459440890,-153.0,0.00027863,30]
[377614518,1754459440899,-4822.56843782,0.0002788,2]
[377614520,1754459440909,-1332.85890486,0.0002789,2]
[377614522,1754459440919,-151.0,0.000279,7]
[377614524,1754459440928,-151.0,0.000279,7]
[377614526,1754459440938,-6948.32090795,0.000279,2]
[377614528,1754459440948,-151.0,0.00027915,7]
[377614531,1754459440958,-151.0,0.00027915,7]
[377614533,1754459440970,-151.0,0.00027915,7]
[377614535,1754459440979,-151.0,0.00027915,7]
[377614537,1754459440989,-1000.0,0.00027921,5]
[377614539,1754459441000,-151.0,0.00027945,7]
[377614541,1754459441010,-286.630323,0.00027945,7]
[377614543,1754459441019,-151.0,0.00027945,7]
[377614545,1754459441029,-151.0,0.00027945,7]
[377614547,1754459441039,-212.732814,0.00027945,7]
[377614549,1754459441048,-204.53151,0.00027945,7]
[377614551,1754459441059,-204.53151,0.00027945,7]
[377614553,1754459441068,-151.0,0.00027945,7]
[377614555,1754459441077,-151.0,0.00027945,7]
[377614557,1754459441088,-500.0,0.00027945,2]
[377614559,1754459441097,-527.97423228,0.00027945,2]
[377614561,1754459441107,-160.0,0.00027963,5]
[377614563,1754459441116,-504.52931059,0.00027973,5]
[377614565,1754459441125,-500.0,0.00027973,5]
[377614567,1754459441135,-150.0,0.00027973,5]
[377614569,1754459441144,-151.0,0.00027973,7]
[377614571,1754459441154,-173.359993,0.00027973,7]
[377614573,1754459441164,-151.886842,0.00027973,7]
[377614575,1754459441174,-409.279478,0.00027973,7]
[377614577,1754459441184,-409.279478,0.00027973,7]
[377614579,1754459441194,-151.0,0.00027973,7]
[377614581,1754459441204,-151.0,0.00027973,7]
[377614583,1754459441214,-151.0,0.0002798,7]
[377614585,1754459441224,-1958.86919109,0.0002798,2]
[377614640,1754459441773,-373.765,0.00027109,2]
[377614642,1754459441783,-412.907,0.00027109,2]
[377614644,1754459441793,-396.07380537,0.00027603,2]
[377614646,1754459441803,-2863.69924673,0.0002798,2]
[377614648,1754459441812,-679.591768,0.0002799,7]
[377614650,1754459441822,-679.591768,0.0002799,7]
[377614652,1754459441831,-151.0,0.0002799,7]
[377614655,1754459441842,-151.0,0.0002799,7]
[377614656,1754459441851,-151.0,0.0002799,7]
[377614658,1754459441860,-224.236812,0.0002799,7]
[377614660,1754459441870,-224.236812,0.0002799,7]
[377614662,1754459441879,-181.564175,0.0002799,7]
[377614664,1754459441889,-201.357027,0.0002799,7]
[377614666,1754459441898,-201.357027,0.0002799,7]
[377614668,1754459441907,-185.455294,0.0002799,7]
[377614670,1754459441917,-185.455294,0.0002799,7]
[377614673,1754459441927,-444.26401535,0.0002799,2]
[377614892,1754459444095,-151.0,0.00027973,7]
[377614894,1754459444105,-2063.58162278,0.0002799,2]
[377615119,1754459446263,-151.0,0.00027973,7]
[377615121,1754459446273,-34720.14173086,0.0002799,2]
[377615123,1754459446283,-151.0,0.0002799,7]
[377615125,1754459446293,-151.0,0.0002799,7]
[377615127,1754459446303,-151.0,0.0002799,7]
[377615129,1754459446314,-204.53151,0.0002799,7]
[377615131,1754459446323,-204.53151,0.0002799,7]
[377615133,1754459446332,-151.0,0.0002799,7]
[377615135,1754459446344,-151.0,0.0002799,7]
[377615137,1754459446354,-151.0,0.0002799,7]
[377615139,1754459446363,-151.0,0.0002799,7]
[377615141,1754459446373,-151.0,0.0002799,7]
[377615143,1754459446383,-912.746167,0.0002799,7]
[377615145,1754459446392,-912.746167,0.0002799,7]
[377615147,1754459446401,-151.0,0.0002799,7]
[377615149,1754459446411,-151.0,0.0002799,7]
[377615151,1754459446420,-151.0,0.0002799,7]
[377615153,1754459446430,-151.0,0.0002799,7]
[377615155,1754459446440,-151.0,0.0002799,7]
[377615157,1754459446450,-14467.7053135,0.0002799,2]
[377615159,1754459446459,-514.75225,0.0002799,7]
[377615161,1754459446470,-514.75225,0.0002799,7]
[377615163,1754459446479,-514.75225,0.0002799,7]
[377615165,1754459446489,-514.75225,0.0002799,7]
[377615168,1754459446499,-151.0,0.0002799,7]
[377615170,1754459446509,-409.279478,0.0002799,7]
[377615172,1754459446517,-409.279478,0.0002799,7]
[377615173,1754459446527,-151.0,0.0002799,7]
[377615175,1754459446536,-151.0,0.0002799,7]
[377615178,1754459446550,-151.0,0.0002799,7]
[377615179,1754459446559,-198.03690268,0.0002799,2]
[377615181,1754459446569,-151.0,0.0002799,7]
[377615184,1754459446578,-151.0,0.0002799,7]
[377615186,1754459446591,-151.0,0.00027996,7]
[377615188,1754459446601,-276.832987,0.00027996,7]
[377615190,1754459446610,-276.832987,0.00027996,7]
[377615191,1754459446621,-248.980751,0.00027996,7]
[377615194,1754459446631,-248.980751,0.00027996,7]
[377615196,1754459446641,-151.0,0.00028,7]
[377615198,1754459446651,-151.0,0.00028,7]
[377615200,1754459446661,-679.591768,0.00028,7]
[377615202,1754459446670,-679.591768,0.00028,7]
[377615204,1754459446679,-151.0,0.00028,7]
[377615206,1754459446690,-151.0,0.00028,7]
[377615208,1754459446700,-151.0,0.00028,7]
[377615210,1754459446710,-276.832987,0.00028,7]
[377615212,1754459446720,-276.832987,0.00028,7]
[377615214,1754459446729,-151.0,0.00028,7]
[377615216,1754459446739,-552.48048394,0.00028,2]
[377615218,1754459446749,-151.0,0.00028,7]
[377615220,1754459446759,-151.0,0.00028,7]
[377615222,1754459446769,-155.243549,0.00028,7]
[377615224,1754459446779,-224.236812,0.00028,7]
[377615226,1754459446789,-224.236812,0.00028,7]
[377615228,1754459446799,-181.564175,0.00028,7]
[377615230,1754459446808,-201.357027,0.00028,7]
[377615232,1754459446818,-201.357027,0.00028,7]
[377615234,1754459446827,-345.438898,0.00028,7]
[377615236,1754459446840,-345.438898,0.00028,7]
[377615238,1754459446850,-185.455294,0.00028,7]
[377615240,1754459446860,-185.455294,0.00028,7]
[377615242,1754459446869,-1500.0,0.00028,28]
[377615244,1754459446879,-1500.0,0.00028,28]
[377615246,1754459446888,-1500.0,0.00028,28]
[377615248,1754459446897,-1500.0,0.00028,28]
[377615250,1754459446907,-1500.0,0.00028,28]
[377615252,1754459446916,-1500.0,0.00028,28]
[377615254,1754459446926,-1500.0,0.00028,28]
[377615256,1754459446936,-1500.0,0.00028,28]
[377615258,1754459446945,-1500.0,0.00028,28]
[377615260,1754459446955,-1500.0,0.00028,28]
[377615262,1754459446966,-1500.0,0.00028,28]
[377615264,1754459446976,-1500.0,0.00028,28]
[377615266,1754459446986,-1500.0,0.00028,28]
[377615268,1754459446996,-1500.0,0.00028,28]
[377615270,1754459447006,-1500.0,0.00028,28]
[377615272,1754459447016,-1500.0,0.00028,28]
[377615274,1754459447027,-1500.0,0.00028,28]
[377615276,1754459447036,-1500.0,0.00028,28]
[377615278,1754459447046,-1500.0,0.00028,28]
[377615280,1754459447055,-1500.0,0.00028,28]
[377615282,1754459447065,-1500.0,0.00028,28]
[377615284,1754459447074,-1500.0,0.00028,28]
[377615286,1754459447084,-1500.0,0.00028,28]
[377615288,1754459447096,-1500.0,0.00028,28]
[377615290,1754459447106,-1500.0,0.00028,28]
[377615292,1754459447116,-1500.0,0.00028,28]
[377615294,1754459447126,-1500.0,0.00028,28]
[377615296,1754459447136,-1500.0,0.00028,28]
[377615298,1754459447145,-1500.0,0.00028,28]
[377615300,1754459447155,-1500.0,0.00028,28]
[377615302,1754459447164,-1500.0,0.00028,28]
[377615304,1754459447173,-1500.0,0.00028,28]
[377615306,1754459447182,-1402.76334382,0.00028,28]
[377615310,1754459447250,-97.23665618,0.00028,28]
[377615311,1754459447259,-1500.0,0.00028,28]
[377615312,1754459447268,-1500.0,0.00028,28]
[377615313,1754459447277,-1500.0,0.00028,28]
[377615314,1754459447287,-1500.0,0.00028,28]
[377615315,1754459447296,-1500.0,0.00028,28]
[377615316,1754459447305,-1500.0,0.00028,28]
[377615317,1754459447315,-1500.0,0.00028,28]
[377615318,1754459447324,-1500.0,0.00028,28]
[377615319,1754459447333,-1500.0,0.00028,28]
[377615320,1754459447345,-1500.0,0.00028,28]
[377615322,1754459447354,-1500.0,0.00028,28]
[377615324,1754459447364,-1500.0,0.00028,28]
[377615326,1754459447373,-1500.0,0.00028,28]
[377615328,1754459447382,-1500.0,0.00028,28]
[377615330,1754459447393,-1500.0,0.00028,28]
[377615332,1754459447402,-1500.0,0.00028,28]
[377615334,1754459447411,-1500.0,0.00028,28]
[377615336,1754459447421,-1500.0,0.00028,28]
[377615338,1754459447431,-1500.0,0.00028,28]
[377615340,1754459447440,-371.48363904,0.00028,28]
[377618483,1754459737450,162.96093,0.00013699,2]
[377618485,1754459751765,10000.0,0.00024551,2]
[377618486,1754459789233,8449.96638473,0.00024551,2]
[377618487,1754459789256,1400.03361527,0.00024551,2]
[377618554,1754460632482,-155.0,0.00025726,14]
[377618555,1754460632493,-237.1268386,0.00026254,2]
[377618556,1754460632502,-9293.5614831,0.0002632,2]
[377618557,1754460632511,-300.0,0.00026573,2]
[377618558,1754460632521,-158.882406,0.0002688,28]
[377618559,1754460632531,-156.479824,0.0002695,28]
[377618560,1754460632540,-253.29564,0.00027123,3]
[377618561,1754460632549,-2099.30801004,0.00027169,2]
[377618624,1754460640448,-48.69198996,0.00027169,2]
[377618625,1754460640457,-636.0,0.00027169,2]
[377618626,1754460640466,-971.0,0.00027169,2]
[377618627,1754460640475,-39.42842604,0.00027253,3]
[377620558,1754460904592,1000.0,0.00024551,2]
[377620560,1754461115220,1000.0,0.00030136,120]
[377620561,1754461126149,1500.0,0.00024551,2]
[377620562,1754461407501,21099.96638473,0.000245,2]
[377620563,1754461407529,10814.21215255,0.000245,2]
[377620564,1754461429327,460.0,0.0002511,9]
[377620565,1754461480120,14185.78784745,0.000245,2]
[377620566,1754461480146,25000.0,0.000245,2]
[377620567,1754461480171,25000.0,0.000245,2]
[377620568,1754461480195,25000.0,0.000245,2]
[377620569,1754461480219,25000.0,0.000245,2]
[377620570,1754461480247,25000.0,0.000245,2]